[Event "Late-Titled-Tuesday-Blitz-May-07-2024"]
[Site "Chess.com"]
[Date "2024.05.07"]
[Round "10"]
[White "HajiyevKanan"]
[Black "NovakRatko"]
[Result "1-0"]
[WhiteElo "2551"]
[BlackElo "2400"]
[TimeControl "180+1"]
[EndTime "15:56:46 PDT"]
[Termination "HajiyevKanan won on time"]

1. d4 {[%clk 0:03:00.9]} 1... d5 {[%clk 0:02:59.1]} 2. Nf3 {[%clk 0:03:01.8]}
2... c5 {[%clk 0:02:59.1]} 3. e3 {[%clk 0:03:00.9]} 3... cxd4 {[%clk 0:02:59.4]}
4. exd4 {[%clk 0:03:01.8]} 4... Nc6 {[%clk 0:03:00]} 5. h3 {[%clk 0:03:00.3]}
5... f6 {[%clk 0:03:00.2]} 6. Bd3 {[%clk 0:03:00.9]} 6... e5 {[%clk 0:02:59.5]}
7. dxe5 {[%clk 0:03:01.4]} 7... fxe5 {[%clk 0:02:59.8]} 8. O-O {[%clk
0:02:20.9]} 8... e4 {[%clk 0:02:57.4]} 9. Re1 {[%clk 0:02:21.5]} 9... Be7 {[%clk
0:02:56.1]} 10. Nc3 {[%clk 0:01:32.8]} 10... exd3 {[%clk 0:02:48.8]} 11. Bg5
{[%clk 0:01:32.9]} 11... Bf5 {[%clk 0:02:32.5]} 12. cxd3 {[%clk 0:01:26.6]}
12... Qd7 {[%clk 0:02:20.6]} 13. b4 {[%clk 0:00:54]} 13... d4 {[%clk 0:00:40.1]}
14. Na4 {[%clk 0:00:26.3]} 14... O-O-O {[%clk 0:00:32.6]} 15. b5 {[%clk
0:00:26.1]} 15... Nb4 {[%clk 0:00:23.4]} 16. Bf4 {[%clk 0:00:22]} 16... Bd6
{[%clk 0:00:21.4]} 17. Ne5 {[%clk 0:00:20.6]} 17... Qxb5 {[%clk 0:00:19.7]} 18.
Rc1+ {[%clk 0:00:16.4]} 18... Kb8 {[%clk 0:00:19]} 19. Nf7 {[%clk 0:00:08.4]}
19... Bxf4 {[%clk 0:00:18.2]} 20. Nxd8 {[%clk 0:00:09.1]} 20... Bxc1 {[%clk
0:00:14.2]} 21. Qxc1 {[%clk 0:00:09]} 21... Nf6 {[%clk 0:00:13.1]} 22. Qf4+
{[%clk 0:00:09.2]} 22... Kc8 {[%clk 0:00:10.8]} 23. Nf7 {[%clk 0:00:06.2]} 23...
Nxd3 {[%clk 0:00:09.9]} 24. Nd6+ {[%clk 0:00:05.8]} 24... Kd7 {[%clk 0:00:08]}
25. Qxf5+ {[%clk 0:00:05.9]} 25... Kxd6 {[%clk 0:00:08.3]} 26. Qxb5 {[%clk
0:00:05.6]} 26... Nxe1 {[%clk 0:00:08.6]} 27. Qb4+ {[%clk 0:00:04.8]} 27... Kd5
{[%clk 0:00:08.6]} 28. Qxe1 {[%clk 0:00:05.5]} 28... Re8 {[%clk 0:00:09]} 29.
Qa5+ {[%clk 0:00:04.9]} 29... Ke4 {[%clk 0:00:08.6]} 30. Nc5+ {[%clk 0:00:05]}
30... Kd5 {[%clk 0:00:07.5]} 31. Nxb7+ {[%clk 0:00:04.7]} 31... Kc4 {[%clk
0:00:07.4]} 32. Qa4+ {[%clk 0:00:04.3]} 32... Kc3 {[%clk 0:00:07.5]} 33. Qa5+
{[%clk 0:00:04.6]} 33... Kc4 {[%clk 0:00:07.2]} 34. Nd6+ {[%clk 0:00:04.9]} 1-0

[Event "Late-Titled-Tuesday-Blitz-May-07-2024"]
[Site "Chess.com"]
[Date "2024.05.07"]
[Round "10"]
[White "Kirill_Klukin"]
[Black "Mikhail_Golubev"]
[Result "1-0"]
[WhiteElo "2819"]
[BlackElo "2609"]
[TimeControl "180+1"]
[EndTime "15:56:51 PDT"]
[Termination "Kirill_Klukin won on time"]

1. Nf3 {[%clk 0:03:00.9]} 1... d6 {[%clk 0:02:59.4]} 2. c4 {[%clk 0:03:00.8]}
2... g6 {[%clk 0:02:59.3]} 3. Nc3 {[%clk 0:03:00.6]} 3... Bg7 {[%clk 0:02:59.8]}
4. g3 {[%clk 0:03:00.6]} 4... e5 {[%clk 0:02:57.9]} 5. Bg2 {[%clk 0:03:01]} 5...
Nc6 {[%clk 0:02:57.9]} 6. d3 {[%clk 0:03:01.3]} 6... f5 {[%clk 0:02:57.6]} 7.
Rb1 {[%clk 0:03:01.1]} 7... h6 {[%clk 0:02:53.2]} 8. Nd5 {[%clk 0:02:53.3]} 8...
Nce7 {[%clk 0:02:45.8]} 9. Nxe7 {[%clk 0:02:46.7]} 9... Nxe7 {[%clk 0:02:46.4]}
10. b4 {[%clk 0:02:47.6]} 10... a6 {[%clk 0:02:42.8]} 11. Bb2 {[%clk 0:02:46.2]}
11... O-O {[%clk 0:02:42.2]} 12. h4 {[%clk 0:02:32.7]} 12... f4 {[%clk
0:02:37.2]} 13. gxf4 {[%clk 0:02:05.4]} 13... Rxf4 {[%clk 0:02:36.9]} 14. e3
{[%clk 0:02:01.8]} 14... Rf8 {[%clk 0:02:30.4]} 15. Nd2 {[%clk 0:02:00.5]} 15...
c6 {[%clk 0:02:22.7]} 16. Ne4 {[%clk 0:01:51.8]} 16... Nf5 {[%clk 0:02:05.1]}
17. h5 {[%clk 0:01:47]} 17... g5 {[%clk 0:01:59.5]} 18. Qe2 {[%clk 0:01:44.3]}
18... d5 {[%clk 0:01:51.3]} 19. cxd5 {[%clk 0:01:42.3]} 19... cxd5 {[%clk
0:01:50.3]} 20. Nc5 {[%clk 0:01:39]} 20... Nh4 {[%clk 0:01:38]} 21. Bf1 {[%clk
0:00:59]} 21... b6 {[%clk 0:01:16.8]} 22. Nb3 {[%clk 0:00:56.5]} 22... Bd7
{[%clk 0:01:14.8]} 23. Nd2 {[%clk 0:00:47.4]} 23... Bb5 {[%clk 0:00:55.5]} 24.
Qg4 {[%clk 0:00:36.1]} 24... Qf6 {[%clk 0:00:41]} 25. Rh2 {[%clk 0:00:36.1]}
25... Rac8 {[%clk 0:00:36.8]} 26. Rc1 {[%clk 0:00:32.8]} 26... Rxc1+ {[%clk
0:00:34.6]} 27. Bxc1 {[%clk 0:00:33.7]} 27... Qc6 {[%clk 0:00:14.7]} 28. Qd1
{[%clk 0:00:28.9]} 28... Rc8 {[%clk 0:00:11.6]} 29. Nb3 {[%clk 0:00:21.2]} 29...
Qc2 {[%clk 0:00:05.7]} 30. Bd2 {[%clk 0:00:11.9]} 30... Qxd1+ {[%clk 0:00:03.1]}
31. Kxd1 {[%clk 0:00:11.8]} 31... e4 {[%clk 0:00:03.6]} 32. Nc1 {[%clk 0:00:10]}
32... Nf3 {[%clk 0:00:02.6]} 33. Rh1 {[%clk 0:00:09.1]} 33... Nxd2 {[%clk
0:00:02.6]} 34. Kxd2 {[%clk 0:00:09.6]} 34... Bc3+ {[%clk 0:00:00.9]} 35. Kd1
{[%clk 0:00:10.3]} 35... Bb2 {[%clk 0:00:01.5]} 36. Nb3 {[%clk 0:00:03.9]} 36...
exd3 {[%clk 0:00:01.7]} 37. Bh3 {[%clk 0:00:04.6]} 37... Rc7 {[%clk 0:00:00.3]}
38. Be6+ {[%clk 0:00:05.2]} 1-0

[Event "Late-Titled-Tuesday-Blitz-May-07-2024"]
[Site "Chess.com"]
[Date "2024.05.07"]
[Round "10"]
[White "GMRafpig"]
[Black "maximnovik"]
[Result "1-0"]
[WhiteElo "2735"]
[BlackElo "2496"]
[TimeControl "180+1"]
[EndTime "15:56:53 PDT"]
[Termination "GMRafpig won by resignation"]

1. c4 {[%clk 0:03:00.9]} 1... Nf6 {[%clk 0:02:56.1]} 2. Nc3 {[%clk 0:03:00.4]}
2... c5 {[%clk 0:02:56.1]} 3. Nf3 {[%clk 0:02:57.9]} 3... Nc6 {[%clk 0:02:55.6]}
4. g3 {[%clk 0:02:53]} 4... Nd4 {[%clk 0:02:53.7]} 5. Bg2 {[%clk 0:02:51.9]}
5... Nxf3+ {[%clk 0:02:52.9]} 6. Bxf3 {[%clk 0:02:52.3]} 6... d6 {[%clk
0:02:52.8]} 7. d4 {[%clk 0:02:45.1]} 7... cxd4 {[%clk 0:02:48.5]} 8. Qxd4 {[%clk
0:02:45.1]} 8... g6 {[%clk 0:02:46.8]} 9. Bg5 {[%clk 0:02:41.1]} 9... Bg7 {[%clk
0:02:46.7]} 10. Nd5 {[%clk 0:02:29.8]} 10... O-O {[%clk 0:02:46.5]} 11. Bxf6
{[%clk 0:02:27.8]} 11... exf6 {[%clk 0:02:46.6]} 12. O-O {[%clk 0:02:27.7]}
12... f5 {[%clk 0:02:46.9]} 13. Qd2 {[%clk 0:02:27.9]} 13... Be6 {[%clk
0:02:46.8]} 14. Rac1 {[%clk 0:02:16.1]} 14... Bxd5 {[%clk 0:02:46.3]} 15. Bxd5
{[%clk 0:02:14.8]} 15... Qb6 {[%clk 0:02:46.1]} 16. Rc2 {[%clk 0:02:09.2]} 16...
Rfe8 {[%clk 0:02:39.6]} 17. e3 {[%clk 0:02:09.1]} 17... Re7 {[%clk 0:02:39.7]}
18. Rd1 {[%clk 0:02:08.6]} 18... Rd8 {[%clk 0:02:33.9]} 19. Kg2 {[%clk
0:02:08.7]} 19... h5 {[%clk 0:02:33.5]} 20. h4 {[%clk 0:02:09]} 20... Bf6 {[%clk
0:02:33.8]} 21. Qc1 {[%clk 0:02:00.1]} 21... a5 {[%clk 0:02:30.4]} 22. Rd3
{[%clk 0:01:57.1]} 22... Kg7 {[%clk 0:02:27.8]} 23. Rb3 {[%clk 0:01:53.4]} 23...
Qa7 {[%clk 0:02:27.6]} 24. Rb5 {[%clk 0:01:52.1]} 24... b6 {[%clk 0:02:22.6]}
25. Qd2 {[%clk 0:01:44.8]} 25... Qc7 {[%clk 0:02:13.9]} 26. Rb3 {[%clk
0:01:31.6]} 26... Qc5 {[%clk 0:02:03.2]} 27. Rd3 {[%clk 0:01:27.2]} 27... Rde8
{[%clk 0:01:59]} 28. Bf3 {[%clk 0:01:24.6]} 28... Re6 {[%clk 0:01:52.9]} 29. Rd5
{[%clk 0:01:23.3]} 29... Qc7 {[%clk 0:01:51.2]} 30. b3 {[%clk 0:01:23.7]} 30...
R8e7 {[%clk 0:01:48.4]} 31. Rc1 {[%clk 0:01:24]} 31... Be5 {[%clk 0:01:39.7]}
32. Rd1 {[%clk 0:01:21.8]} 32... Qb8 {[%clk 0:01:35.9]} 33. Rb5 {[%clk
0:01:20.6]} 33... Qc7 {[%clk 0:01:35.2]} 34. Qd5 {[%clk 0:01:20.4]} 34... Bf6
{[%clk 0:01:28.3]} 35. Qc6 {[%clk 0:01:14.4]} 35... Qxc6 {[%clk 0:01:23.4]} 36.
Bxc6 {[%clk 0:01:15.3]} 36... f4 {[%clk 0:01:19.7]} 37. Bd5 {[%clk 0:01:07]}
37... fxe3 {[%clk 0:01:12]} 38. Bxe6 {[%clk 0:01:04.4]} 38... Rxe6 {[%clk
0:01:07.5]} 39. Re1 {[%clk 0:00:56.9]} 39... Bd4 {[%clk 0:00:55.1]} 40. fxe3
{[%clk 0:00:55.2]} 40... Bc5 {[%clk 0:00:52.3]} 41. e4 {[%clk 0:00:39.2]} 41...
f5 {[%clk 0:00:48.8]} 42. Kf3 {[%clk 0:00:36]} 42... Kf6 {[%clk 0:00:39.8]} 43.
Re2 {[%clk 0:00:31.9]} 43... Re5 {[%clk 0:00:39.6]} 44. exf5 {[%clk 0:00:26.7]}
44... Rxf5+ {[%clk 0:00:39.5]} 45. Kg2 {[%clk 0:00:27.4]} 45... g5 {[%clk
0:00:39.3]} 46. a3 {[%clk 0:00:21.5]} 46... gxh4 {[%clk 0:00:36.2]} 47. b4
{[%clk 0:00:21.3]} 47... axb4 {[%clk 0:00:30.9]} 48. axb4 {[%clk 0:00:22.2]}
48... Bd4 {[%clk 0:00:22.5]} 49. Rxf5+ {[%clk 0:00:22.1]} 49... Kxf5 {[%clk
0:00:22.8]} 50. gxh4 {[%clk 0:00:22.8]} 50... Kg4 {[%clk 0:00:22.9]} 51. Re4+
{[%clk 0:00:22.6]} 51... Kf5 {[%clk 0:00:23.1]} 52. Rxd4 {[%clk 0:00:23]} 1-0

[Event "Late-Titled-Tuesday-Blitz-May-07-2024"]
[Site "Chess.com"]
[Date "2024.05.07"]
[Round "10"]
[White "YouShallNotPass001"]
[Black "alexrustemov"]
[Result "0-1"]
[WhiteElo "2489"]
[BlackElo "2893"]
[TimeControl "180+1"]
[EndTime "15:56:57 PDT"]
[Termination "alexrustemov won by checkmate"]

1. e4 {[%clk 0:03:00.9]} 1... e6 {[%clk 0:02:58.1]} 2. d4 {[%clk 0:03:00.1]}
2... d5 {[%clk 0:02:58.4]} 3. exd5 {[%clk 0:03:00.9]} 3... exd5 {[%clk
0:02:58.5]} 4. Nf3 {[%clk 0:03:01.8]} 4... Nc6 {[%clk 0:02:57.7]} 5. Bb5 {[%clk
0:02:57.6]} 5... Bd6 {[%clk 0:02:56.9]} 6. Bxc6+ {[%clk 0:02:56.3]} 6... bxc6
{[%clk 0:02:56.6]} 7. h3 {[%clk 0:02:57]} 7... Ba6 {[%clk 0:02:55]} 8. Be3
{[%clk 0:02:52.6]} 8... Rb8 {[%clk 0:02:51.3]} 9. b3 {[%clk 0:02:52]} 9... Nf6
{[%clk 0:02:48.6]} 10. Nbd2 {[%clk 0:02:51.7]} 10... Bb4 {[%clk 0:02:44.8]} 11.
Ne5 {[%clk 0:02:41.7]} 11... Qd6 {[%clk 0:02:40.2]} 12. Nd3 {[%clk 0:02:39.7]}
12... Bc3 {[%clk 0:02:39.4]} 13. Rc1 {[%clk 0:02:36.6]} 13... Ne4 {[%clk
0:02:32.1]} 14. O-O {[%clk 0:02:34.4]} 14... O-O {[%clk 0:02:27.5]} 15. Nb1
{[%clk 0:02:06.4]} 15... Ba5 {[%clk 0:02:11.3]} 16. c3 {[%clk 0:02:01]} 16...
Rfe8 {[%clk 0:02:03.5]} 17. b4 {[%clk 0:01:58.2]} 17... Bb6 {[%clk 0:02:02.7]}
18. a4 {[%clk 0:01:57.9]} 18... Bxd3 {[%clk 0:01:50.5]} 19. Qxd3 {[%clk
0:01:58.8]} 19... a5 {[%clk 0:01:50.4]} 20. bxa5 {[%clk 0:01:56.1]} 20... Bxa5
{[%clk 0:01:50]} 21. c4 {[%clk 0:01:54.8]} 21... Qb4 {[%clk 0:01:43.3]} 22. cxd5
{[%clk 0:01:51.7]} 22... cxd5 {[%clk 0:01:43.1]} 23. Rc2 {[%clk 0:01:12.5]}
23... Qxa4 {[%clk 0:01:39.4]} 24. Rfc1 {[%clk 0:01:12.1]} 24... Qb5 {[%clk
0:01:28.9]} 25. Qxb5 {[%clk 0:01:02.4]} 25... Rxb5 {[%clk 0:01:29.8]} 26. Nd2
{[%clk 0:01:00.3]} 26... Bxd2 {[%clk 0:01:24.4]} 27. Bxd2 {[%clk 0:01:01.2]}
27... Nxd2 {[%clk 0:01:10.3]} 28. Rxd2 {[%clk 0:01:00.8]} 28... Rb7 {[%clk
0:01:10.5]} 29. Rc5 {[%clk 0:00:53.8]} 29... Rd8 {[%clk 0:01:09.3]} 30. Re2
{[%clk 0:00:47]} 30... Kf8 {[%clk 0:01:08.1]} 31. Re5 {[%clk 0:00:44.7]} 31...
Rb4 {[%clk 0:00:58.4]} 32. Rexd5 {[%clk 0:00:16.3]} 32... Rxd5 {[%clk 0:00:55]}
33. Rxd5 {[%clk 0:00:17.2]} 33... Ke7 {[%clk 0:00:54.9]} 34. Kf1 {[%clk
0:00:17]} 34... Ke6 {[%clk 0:00:53]} 35. Rc5 {[%clk 0:00:16.5]} 35... Kd6 {[%clk
0:00:52.7]} 36. Rf5 {[%clk 0:00:15.5]} 36... f6 {[%clk 0:00:51.5]} 37. Rf4
{[%clk 0:00:15]} 37... Kd5 {[%clk 0:00:51.1]} 38. Rg4 {[%clk 0:00:15.1]} 38...
g6 {[%clk 0:00:49.4]} 39. Rh4 {[%clk 0:00:14.8]} 39... h5 {[%clk 0:00:47.3]} 40.
Rf4 {[%clk 0:00:15.3]} 40... f5 {[%clk 0:00:46.6]} 41. Rf3 {[%clk 0:00:15.4]}
41... Kxd4 {[%clk 0:00:41]} 42. Rg3 {[%clk 0:00:15.5]} 42... Rb6 {[%clk
0:00:40.1]} 43. Ke2 {[%clk 0:00:15.6]} 43... c5 {[%clk 0:00:35.9]} 44. Kd2
{[%clk 0:00:15.6]} 44... c4 {[%clk 0:00:35.3]} 45. Kc2 {[%clk 0:00:15.8]} 45...
Ra6 {[%clk 0:00:32.7]} 46. Rf3 {[%clk 0:00:13.5]} 46... Ra2+ {[%clk 0:00:30.5]}
47. Kc1 {[%clk 0:00:13.9]} 47... c3 {[%clk 0:00:29.2]} 48. Rf4+ {[%clk
0:00:13.5]} 48... Kd3 {[%clk 0:00:29.3]} 49. Rf3+ {[%clk 0:00:13.2]} 49... Kc4
{[%clk 0:00:29.5]} 50. Kb1 {[%clk 0:00:08.4]} 50... Re2 {[%clk 0:00:28.1]} 51.
Kc1 {[%clk 0:00:07.4]} 51... Kb3 {[%clk 0:00:28.1]} 52. Kd1 {[%clk 0:00:07.8]}
52... Ra2 {[%clk 0:00:26.8]} 53. Kc1 {[%clk 0:00:08]} 53... Ra1# {[%clk
0:00:25.4]} 0-1

[Event "Late-Titled-Tuesday-Blitz-May-07-2024"]
[Site "Chess.com"]
[Date "2024.05.07"]
[Round "10"]
[White "ashookk"]
[Black "MuhittinBuker"]
[Result "1/2-1/2"]
[WhiteElo "2375"]
[BlackElo "2217"]
[TimeControl "180+1"]
[EndTime "15:57:01 PDT"]
[Termination "Game drawn by repetition"]

1. Nf3 {[%clk 0:02:58.7]} 1... Nf6 {[%clk 0:02:59.3]} 2. c4 {[%clk 0:02:15.4]}
2... e6 {[%clk 0:02:47.8]} 3. d4 {[%clk 0:02:15.2]} 3... d5 {[%clk 0:02:46.6]}
4. Nc3 {[%clk 0:02:14.9]} 4... Be7 {[%clk 0:02:45.4]} 5. cxd5 {[%clk 0:02:14.2]}
5... exd5 {[%clk 0:02:44.9]} 6. Bg5 {[%clk 0:02:14.7]} 6... c6 {[%clk
0:02:44.5]} 7. Qc2 {[%clk 0:02:15.2]} 7... O-O {[%clk 0:02:44.5]} 8. e3 {[%clk
0:02:15]} 8... Nbd7 {[%clk 0:02:42.3]} 9. Bd3 {[%clk 0:02:15.4]} 9... h6 {[%clk
0:02:41.4]} 10. Bh4 {[%clk 0:02:15.5]} 10... Re8 {[%clk 0:02:42.1]} 11. O-O
{[%clk 0:02:15.5]} 11... Ne4 {[%clk 0:02:40.4]} 12. Bxe7 {[%clk 0:02:13.7]}
12... Qxe7 {[%clk 0:02:41.3]} 13. Rab1 {[%clk 0:02:14]} 13... a5 {[%clk
0:02:40.1]} 14. a3 {[%clk 0:02:14.1]} 14... Ndf6 {[%clk 0:02:10.7]} 15. Ne5
{[%clk 0:02:09.8]} 15... Nxc3 {[%clk 0:02:06]} 16. Qxc3 {[%clk 0:02:04.1]} 16...
Nd7 {[%clk 0:02:05.7]} 17. Nf3 {[%clk 0:01:45.1]} 17... Nf6 {[%clk 0:02:05.3]}
18. b4 {[%clk 0:01:45.6]} 18... axb4 {[%clk 0:02:04.3]} 19. axb4 {[%clk
0:01:46.5]} 19... Bg4 {[%clk 0:01:58.3]} 20. Ne5 {[%clk 0:01:46.6]} 20... Bd7
{[%clk 0:01:43.9]} 21. b5 {[%clk 0:01:45.9]} 21... Rec8 {[%clk 0:01:42.2]} 22.
bxc6 {[%clk 0:01:45.3]} 22... bxc6 {[%clk 0:01:28.4]} 23. Rb7 {[%clk 0:01:44.6]}
23... Qd6 {[%clk 0:01:28.7]} 24. Nxd7 {[%clk 0:01:40.1]} 24... Nxd7 {[%clk
0:01:27.7]} 25. Bf5 {[%clk 0:01:38.7]} 25... Rc7 {[%clk 0:01:24]} 26. Rfb1
{[%clk 0:01:10]} 26... g6 {[%clk 0:01:12.7]} 27. Bxd7 {[%clk 0:01:08.9]} 27...
Qxd7 {[%clk 0:01:12.3]} 28. R7b6 {[%clk 0:00:53.5]} 28... h5 {[%clk 0:00:53.3]}
29. h3 {[%clk 0:00:52]} 29... Rac8 {[%clk 0:00:48.7]} 30. Qc5 {[%clk 0:00:51.4]}
30... Qe7 {[%clk 0:00:44.1]} 31. Rc1 {[%clk 0:00:30.4]} 31... Qxc5 {[%clk
0:00:43.3]} 32. Rxc5 {[%clk 0:00:31.3]} 32... Kf8 {[%clk 0:00:42.6]} 33. Kf1
{[%clk 0:00:31.9]} 33... Ke7 {[%clk 0:00:43.2]} 34. Ke2 {[%clk 0:00:32.4]} 34...
Kd6 {[%clk 0:00:43.9]} 35. Kd3 {[%clk 0:00:31.8]} 35... Ra8 {[%clk 0:00:44.4]}
36. Rb2 {[%clk 0:00:29.6]} 36... Ra3+ {[%clk 0:00:42.6]} 37. Ke2 {[%clk
0:00:29.9]} 37... Rca7 {[%clk 0:00:36.9]} 38. Rbc2 {[%clk 0:00:30.2]} 38... R7a6
{[%clk 0:00:36.7]} 39. Kd2 {[%clk 0:00:27.3]} 39... Rb6 {[%clk 0:00:36]} 40. Ke2
{[%clk 0:00:26.8]} 40... Kd7 {[%clk 0:00:35.4]} 41. Kf3 {[%clk 0:00:26.6]} 41...
f6 {[%clk 0:00:30.4]} 42. Kf4 {[%clk 0:00:21.9]} 42... Kd6 {[%clk 0:00:29.4]}
43. g3 {[%clk 0:00:17.7]} 43... Ra8 {[%clk 0:00:29.7]} 44. Kf3 {[%clk
0:00:17.1]} 44... Ra1 {[%clk 0:00:27.1]} 45. Kf4 {[%clk 0:00:16]} 45... Raa6
{[%clk 0:00:26.6]} 46. Kf3 {[%clk 0:00:15.1]} 46... Ke6 {[%clk 0:00:26.7]} 47.
Ke2 {[%clk 0:00:14.8]} 47... Kd6 {[%clk 0:00:26.2]} 48. Kf3 {[%clk 0:00:14.9]}
48... Ra3 {[%clk 0:00:20.7]} 49. Kf4 {[%clk 0:00:14.7]} 49... Raa6 {[%clk
0:00:18.7]} 50. Kf3 {[%clk 0:00:13.8]} 1/2-1/2

[Event "Late-Titled-Tuesday-Blitz-May-07-2024"]
[Site "Chess.com"]
[Date "2024.05.07"]
[Round "10"]
[White "IlanSchnaider"]
[Black "eljanov"]
[Result "0-1"]
[WhiteElo "2720"]
[BlackElo "2863"]
[TimeControl "180+1"]
[EndTime "15:57:04 PDT"]
[Termination "eljanov won by checkmate"]

1. e4 {[%clk 0:03:00.9]} 1... c6 {[%clk 0:02:58.5]} 2. Nf3 {[%clk 0:03:00.7]}
2... d5 {[%clk 0:02:58.4]} 3. Nc3 {[%clk 0:03:01.4]} 3... dxe4 {[%clk
0:02:57.7]} 4. Nxe4 {[%clk 0:03:02.3]} 4... Nf6 {[%clk 0:02:57.1]} 5. Qe2 {[%clk
0:03:02.9]} 5... Nxe4 {[%clk 0:02:57.6]} 6. Qxe4 {[%clk 0:03:03.8]} 6... Qd5
{[%clk 0:02:57.9]} 7. Qh4 {[%clk 0:03:04.1]} 7... Qe6+ {[%clk 0:02:49.9]} 8. Be2
{[%clk 0:03:02.6]} 8... Qg4 {[%clk 0:02:50.5]} 9. Qg3 {[%clk 0:02:56.9]} 9... g6
{[%clk 0:02:50]} 10. Qe5 {[%clk 0:02:38.1]} 10... f6 {[%clk 0:02:47.4]} 11. Qg3
{[%clk 0:02:29.6]} 11... e5 {[%clk 0:02:36.1]} 12. d3 {[%clk 0:02:06.1]} 12...
Na6 {[%clk 0:02:23.2]} 13. Bd2 {[%clk 0:02:00.9]} 13... Nb4 {[%clk 0:02:18.7]}
14. Bd1 {[%clk 0:01:27.8]} 14... Qxg3 {[%clk 0:02:13.2]} 15. hxg3 {[%clk
0:01:28.7]} 15... Be6 {[%clk 0:02:12.1]} 16. a3 {[%clk 0:01:17.7]} 16... Nd5
{[%clk 0:02:12.1]} 17. O-O {[%clk 0:01:18.4]} 17... Kf7 {[%clk 0:02:00.6]} 18.
Re1 {[%clk 0:01:17]} 18... c5 {[%clk 0:02:00.2]} 19. c3 {[%clk 0:01:12.5]} 19...
a5 {[%clk 0:01:56.2]} 20. d4 {[%clk 0:01:05.7]} 20... exd4 {[%clk 0:01:55.4]}
21. cxd4 {[%clk 0:01:04.3]} 21... c4 {[%clk 0:01:55.7]} 22. Ba4 {[%clk
0:00:56.8]} 22... Bd6 {[%clk 0:01:45.5]} 23. Rac1 {[%clk 0:00:46.9]} 23... Nb6
{[%clk 0:01:44.5]} 24. Bb5 {[%clk 0:00:45.6]} 24... Rhc8 {[%clk 0:01:43.2]} 25.
Be3 {[%clk 0:00:37.2]} 25... Bd7 {[%clk 0:01:41.2]} 26. Bxd7 {[%clk 0:00:28.5]}
26... Nxd7 {[%clk 0:01:40.8]} 27. a4 {[%clk 0:00:25.1]} 27... Nb6 {[%clk
0:01:39.6]} 28. Nd2 {[%clk 0:00:25.5]} 28... Bb4 {[%clk 0:01:36.2]} 29. Red1
{[%clk 0:00:18.2]} 29... Bxd2 {[%clk 0:01:34]} 30. Rxd2 {[%clk 0:00:19.1]} 30...
Nxa4 {[%clk 0:01:34.3]} 31. d5 {[%clk 0:00:12.9]} 31... b5 {[%clk 0:01:18.8]}
32. d6 {[%clk 0:00:13]} 32... Rd8 {[%clk 0:01:15.2]} 33. Rd5 {[%clk 0:00:12.9]}
33... Rab8 {[%clk 0:01:15.2]} 34. Rc2 {[%clk 0:00:04.6]} 34... Ke6 {[%clk
0:01:10.9]} 35. Rd1 {[%clk 0:00:02.4]} 35... Rb7 {[%clk 0:01:07.2]} 36. Re2
{[%clk 0:00:02.5]} 36... Kf7 {[%clk 0:01:07]} 37. Bf4 {[%clk 0:00:01.7]} 37...
Nc5 {[%clk 0:01:02.1]} 38. Rd5 {[%clk 0:00:01.8]} 38... Nd3 {[%clk 0:01:00.9]}
39. Bd2 {[%clk 0:00:02.5]} 39... a4 {[%clk 0:00:55.7]} 40. Ba5 {[%clk
0:00:02.3]} 40... Rdd7 {[%clk 0:00:56.1]} 41. Bc3 {[%clk 0:00:02.3]} 41... b4
{[%clk 0:00:52.2]} 42. Bd4 {[%clk 0:00:02.9]} 42... c3 {[%clk 0:00:50]} 43. bxc3
{[%clk 0:00:02.8]} 43... b3 {[%clk 0:00:50.4]} 44. c4 {[%clk 0:00:03.3]} 44...
Nb4 {[%clk 0:00:45.1]} 45. Rb5 {[%clk 0:00:01.9]} 45... Rxb5 {[%clk 0:00:42.7]}
46. cxb5 {[%clk 0:00:02.8]} 46... a3 {[%clk 0:00:41.5]} 47. b6 {[%clk
0:00:01.5]} 47... Nc2 {[%clk 0:00:34]} 48. Bc3 {[%clk 0:00:01.5]} 48... b2
{[%clk 0:00:32.1]} 49. Re7+ {[%clk 0:00:01.1]} 49... Rxe7 {[%clk 0:00:32]} 50.
dxe7 {[%clk 0:00:02]} 50... b1=Q+ {[%clk 0:00:31.9]} 51. Kh2 {[%clk 0:00:02.9]}
51... Kxe7 {[%clk 0:00:31.6]} 52. Bxf6+ {[%clk 0:00:02.6]} 52... Kxf6 {[%clk
0:00:31.5]} 53. b7 {[%clk 0:00:03.5]} 53... Qxb7 {[%clk 0:00:31.4]} 54. g4
{[%clk 0:00:03.3]} 54... g5 {[%clk 0:00:31.1]} 55. g3 {[%clk 0:00:03.9]} 55...
Ne1 {[%clk 0:00:30.7]} 56. f4 {[%clk 0:00:04.8]} 56... Qg2# {[%clk 0:00:27.4]}
0-1

[Event "Late-Titled-Tuesday-Blitz-May-07-2024"]
[Site "Chess.com"]
[Date "2024.05.07"]
[Round "10"]
[White "vugarrasulov"]
[Black "GianmarcoVaR"]
[Result "1-0"]
[WhiteElo "2992"]
[BlackElo "2794"]
[TimeControl "180+1"]
[EndTime "15:57:06 PDT"]
[Termination "vugarrasulov won by checkmate"]

1. d4 {[%clk 0:03:00.9]} 1... Nf6 {[%clk 0:02:59.8]} 2. c4 {[%clk 0:03:00.9]}
2... e6 {[%clk 0:02:56.9]} 3. Nc3 {[%clk 0:03:01.2]} 3... Bb4 {[%clk 0:02:57.5]}
4. Nf3 {[%clk 0:03:01.5]} 4... b6 {[%clk 0:02:57.3]} 5. Bg5 {[%clk 0:02:57.2]}
5... Bb7 {[%clk 0:02:55.8]} 6. Rc1 {[%clk 0:02:56.9]} 6... h6 {[%clk 0:02:52.5]}
7. Bh4 {[%clk 0:02:56.9]} 7... Qe7 {[%clk 0:02:23.6]} 8. e3 {[%clk 0:02:53.2]}
8... g5 {[%clk 0:02:13.6]} 9. Bg3 {[%clk 0:02:52.7]} 9... Bxc3+ {[%clk
0:02:14.4]} 10. Rxc3 {[%clk 0:02:49.9]} 10... d6 {[%clk 0:02:14.8]} 11. Bd3
{[%clk 0:02:45.6]} 11... Ne4 {[%clk 0:02:13.2]} 12. Bxe4 {[%clk 0:02:33.3]}
12... Bxe4 {[%clk 0:02:13.8]} 13. c5 {[%clk 0:02:31.6]} 13... O-O {[%clk
0:01:40]} 14. h4 {[%clk 0:02:25.8]} 14... Nd7 {[%clk 0:00:57.8]} 15. hxg5 {[%clk
0:02:24.4]} 15... hxg5 {[%clk 0:00:58]} 16. Nd2 {[%clk 0:02:11.8]} 16... Bg6
{[%clk 0:00:57.1]} 17. cxd6 {[%clk 0:02:11.4]} 17... cxd6 {[%clk 0:00:57.3]} 18.
Nc4 {[%clk 0:02:02.1]} 18... e5 {[%clk 0:00:48.8]} 19. dxe5 {[%clk 0:01:59.8]}
19... dxe5 {[%clk 0:00:49.4]} 20. Qd6 {[%clk 0:01:44.8]} 20... Qxd6 {[%clk
0:00:49.6]} 21. Nxd6 {[%clk 0:01:45.7]} 21... f6 {[%clk 0:00:44.6]} 22. Rc7
{[%clk 0:01:39.1]} 22... Rfd8 {[%clk 0:00:43]} 23. f4 {[%clk 0:01:14.2]} 23...
exf4 {[%clk 0:00:43.1]} 24. exf4 {[%clk 0:01:15.1]} 24... gxf4 {[%clk
0:00:43.8]} 25. Bxf4 {[%clk 0:01:12]} 25... Nc5 {[%clk 0:00:44.3]} 26. Bg3
{[%clk 0:00:36.9]} 26... Nd3+ {[%clk 0:00:43.4]} 27. Ke2 {[%clk 0:00:35.1]}
27... Ne5 {[%clk 0:00:44.3]} 28. Bxe5 {[%clk 0:00:26.1]} 28... fxe5 {[%clk
0:00:45.2]} 29. Nc4 {[%clk 0:00:26.1]} 29... Rd4 {[%clk 0:00:36]} 30. Ne3 {[%clk
0:00:19.1]} 30... Bd3+ {[%clk 0:00:22.6]} 31. Ke1 {[%clk 0:00:15]} 31... Re4
{[%clk 0:00:19]} 32. Rh3 {[%clk 0:00:15.5]} 32... Rf8 {[%clk 0:00:16.8]} 33.
Rg3+ {[%clk 0:00:13.7]} 33... Kh8 {[%clk 0:00:17.2]} 34. Rxa7 {[%clk 0:00:13.8]}
34... Bb5 {[%clk 0:00:12.7]} 35. b3 {[%clk 0:00:11.4]} 35... Rf1+ {[%clk
0:00:11.4]} 36. Kd2 {[%clk 0:00:12]} 36... Rf2+ {[%clk 0:00:10.1]} 37. Kc3
{[%clk 0:00:11.9]} 37... Rd4 {[%clk 0:00:02.8]} 38. Ng4 {[%clk 0:00:08.2]} 38...
Rfd2 {[%clk 0:00:02.1]} 39. Nxe5 {[%clk 0:00:07.9]} 39... Be2 {[%clk 0:00:01.2]}
40. Ng6+ {[%clk 0:00:05.9]} 40... Kg8 {[%clk 0:00:01.1]} 41. Nf4+ {[%clk
0:00:05.6]} 41... Kf8 {[%clk 0:00:01.1]} 42. Ne6+ {[%clk 0:00:05.8]} 42... Ke8
{[%clk 0:00:01.6]} 43. Rg8# {[%clk 0:00:05.8]} 1-0